Cogmind - Beta 10.2 @@@ ROGUE MODE // 2022.02.24 @ 07:30:03 Player: woegarden Result: Self-destructed Performance ------------- Evolutions (1) 500 Regions Visited (3) 600 Robots Destroyed (13) 65 Value Destroyed (348) 348 Prototype IDs (0) 0 Alien Tech Used (0) 0 Bonus (0) 0 TOTAL SCORE: 1513 Bonus ------- None Cogmind --------- Core Integrity 215/400 Matter 101/300 Energy 100/100 System Corruption 4% Temperature Cool (0) Movement Walking (120) Location -9/Materials Parts ------- > --- POWER (1) -------- (None) > --- PROPULSION (3) --- Aluminum Leg > --- UTILITY (2) ------ Small Storage Unit Small Storage Unit > --- WEAPON (3) ------- Mini Grenade Launcher > --- INVENTORY (8) ---- Light Ion Engine Light Treads Light Treads Medium Laser Light Assault Rifle Peak State ------------ > --- POWER ------------ (None) > --- PROPULSION ------- Aluminum Leg Aluminum Leg Aluminum Leg > --- UTILITY ---------- Small Storage Unit Small Storage Unit > --- WEAPON ----------- Mini Grenade Launcher Mini Grenade Launcher Mini Grenade Launcher > --- INVENTORY -------- Light Ion Engine Light Treads Light Treads Medium Laser Light Assault Rifle Mini Grenade Launcher [Rating: 11] Favorites ----------- Power Ion Engine Engine Ion Engine Propulsion Aluminum Leg Leg Aluminum Leg Utility Small Storage Unit Storage Small Storage Unit Weapon Mini Grenade Launcher Ballistic Gun Assault Rifle Launcher Mini Grenade Launcher Build | -11 -10 -10 -9 ------- Run | Scr Mat Min Mat Slots Evolved 2 | . . . 2 Power . | . . . . Propulsion 1 | . . . 1 Utility . | . . . . Weapon 1 | . . . 1 Parts Attached 16 | 6 4 . 6 Power 1 | 1 . . . Engine 1 | 1 . . . Core . | . . . . Reactor . | . . . . Propulsion 6 | 2 . . 4 Treads . | . . . . Leg 6 | 2 . . 4 Wheel . | . . . . Hover . | . . . . Flight . | . . . . Utility 2 | 1 1 . . Device . | . . . . Storage 2 | 1 1 . . Processor . | . . . . Hackware . | . . . . Protection . | . . . . Artifact . | . . . . Weapon 7 | 2 3 . 2 Energy Gun . | . . . . Energy Cannon . | . . . . Ballistic Gun 2 | 2 . . . Ballistic Cannon . | . . . . Launcher 5 | . 3 . 2 Special Weapon . | . . . . Impact Weapon . | . . . . Slashing Weapon . | . . . . Piercing Weapon . | . . . . Special Melee Weapon . | . . . . Unidentified Prototypes . | . . . . Parts Lost 5 | . . . 5 Power . | . . . . Propulsion 2 | . . . 2 Utility . | . . . . Weapon 3 | . . . 3 Highest Loss Streak 5 | . . . 5 Average Slot Usage (%) 80 | . 87 85 73 Engine 4 | . 10 . . Leg 25 | . 28 28 22 Storage 23 | . 23 28 22 Ballistic Gun 4 | . 11 . . Launcher 22 | . 14 28 28 Naked Turns . | . . . . Heaviest Build 18 | 12 18 10 11 Greatest Support 30 | 20 20 20 30 Greatest Overweight (x) 3 | 1 . . 3 Average Overweight (x) . | . . . . Largest Inventory Capacity 8 | 6 8 8 8 Average Capacity 7 | 5 7 8 8 Most Carried 8 | 5 8 8 8 Average Carried 5 | 3 6 8 5 Final Capacity 8 | 6 8 8 8 Final Carried 8 | 5 8 8 5 Class Distribution -------------------- 77% | Mutant 22% | Bomber Dominant Class ---------------- Mutant | -10/Materials Mutant | -10/Mines Bomber | -9/Materials Resources | -11 -10 -10 -9 ----------- Run | Scr Mat Min Mat Matter Collected 207 | 141 66 . . Remotely . | . . . . Salvage Created 263 | 70 132 53 8 Parts 15 | 2 6 3 4 Haulers Intercepted . | . . . . Recyclers Shooed . | . . . . Parts Field Recycled . | . . . . Retrieved Matter . | . . . . Parts Self-Destructed . | . . . . Prevented . | . . . . Kills | -11 -10 -10 -9 ------- Run | Scr Mat Min Mat Combat Hostiles Destroyed 11 | . 5 2 4 AOE 11 | . 5 2 4 Classes Destroyed 4 | 1 2 . 1 Builder 1 | . 1 . . Recycler 1 | 1 . . . Swarmer 4 | . . . 4 Grunt 7 | . 5 2 . Best Kill Streak 6 | 1 6 2 4 Combat Bots Only 5 | . 5 2 4 Max Kills in Single Turn 4 | 1 2 2 4 Gunslinging . | . . . . Exploded 4 | . 2 2 4 Melee . | . . . . Uniques/NPCs Destroyed . | . . . . Combat | -11 -10 -10 -9 -------- Run | Scr Mat Min Mat Damage Taken 802 | . 106 84 612 Core 274 | . 45 44 185 Absorbed by Shields . | . . . . Core Remaining (%) 82 | 100 . 64 . Volleys Fired 12 | 2 6 1 3 Largest 3 | 2 1 2 3 Hottest 90 | 40 30 60 90 Shots Fired 18 | 4 6 2 6 Gun 4 | 4 . . . Cannon . | . . . . Launcher 14 | . 6 2 6 Special . | . . . . Kinetic 4 | 4 . . . Thermal . | . . . . Explosive 14 | . 6 2 6 Electromagnetic . | . . . . Robot Hit Streak 7 | 3 4 5 7 Robot Miss Streak 3 | 1 1 . 3 Penetration Max . | . . . . Secondary Targets . | . . . . Shots Hit Robots 11 | 3 5 1 2 Core Hits 22 | 2 11 3 6 Critical Hits . | . . . . Critical Kills . | . . . . Critical Parts Destroyed . | . . . . Melee Attacks . | . . . . Impact . | . . . . Slashing . | . . . . Piercing . | . . . . Sneak Attacks . | . . . . Combat Hostiles . | . . . . Follow-up Attacks . | . . . . Damage Inflicted 877 | 38 416 124 299 Guns 38 | 38 . . . Cannons . | . . . . Explosions 792 | . 416 124 252 Melee . | . . . . Ramming 47 | . . . 47 Kinetic 38 | 38 . . . Thermal . | . . . . Explosive 792 | . 416 124 252 Electromagnetic . | . . . . Impact . | . . . . Slashing . | . . . . Piercing . | . . . . Highest Corruption 4 | . . . 4 Average Corruption 4 | . . . 4 Corruption Purged . | . . . . Overload Shots . | . . . . Overflow Damage 18 | . . . 18 Projectiles . | . . . . Explosions 18 | . . . 18 Melee . | . . . . Knockbacks . | . . . . Impact . | . . . . Kinetic . | . . . . Secondary . | . . . . Self-Inflicted Damage 170 | . . 56 114 Shots 5 | . . 2 3 Rammed 17 | . . . 17 Targets Rammed 20 | . . . 20 Kicked 3 | . . . 3 Crushed . | . . . . Highest Temperature 6 | . 5 . 6 Average Temperature 3 | . 3 . 3 Received Heat Transfer 216 | . 63 18 135 Siege Activations . | . . . . Robots Corrupted . | . . . . Combat Hostiles . | . . . . Parts Fried . | . . . . Impact Corruptions . | . . . . Robots Melted . | . . . . Combat Hostiles . | . . . . Parts Melted . | . . . . Heat Transferred . | . . . . Parts Sabotaged . | . . . . Parts Stolen . | . . . . Parts Stripped . | . . . . Power Chain Reactions . | . . . . Missiles Intercepted . | . . . . Alert | -11 -10 -10 -9 ------- Run | Scr Mat Min Mat Peak Influence 198 | 5 198 141 179 Initial 76 | . 3 76 54 Average 92 | 1 121 127 101 Maximum Alert Level . | . . . . Low Security (%) 100 | 100 100 100 100 Level 1 . | . . . . Level 2 . | . . . . Level 3 . | . . . . Level 4 . | . . . . Level 5 . | . . . . High Security . | . . . . Max Security . | . . . . Squads Dispatched 1 | . 1 . . Investigation . | . . . . Extermination . | . . . . Reinforcement 1 | . 1 . . Assault . | . . . . Garrison . | . . . . Intercept . | . . . . Construction Impeded . | . . . . Haulers Reinforced . | . . . . Stealth | -11 -10 -10 -9 --------- Run | Scr Mat Min Mat Distress Signals . | . . . . Communications Jammed . | . . . . Distress Signals . | . . . . Times Spotted 15 | . 7 2 6 Peak Tracking Total 5 | . 3 2 5 Tactical Retreats . | . . . . Traps | -11 -10 -10 -9 ------- Run | Scr Mat Min Mat Traps Triggered 2 | . 1 . 1 Indirectly . | . . . . Trap Hack Attempts . | . . . . Triggered . | . . . . Disarmed . | . . . . Reprogrammed . | . . . . Reused . | . . . . Traps Extracted . | . . . . Installed . | . . . . Triggered . | . . . . Machines | -11 -10 -10 -9 ---------- Run | Scr Mat Min Mat Machines Disabled 2 | . 2 . . Max in Single Turn 1 | . 1 . . Machines Sabotaged . | . . . . Garrisons Compromised . | . . . . Overloaded Fab Kills . | . . . . Fab Network Shutdowns . | . . . . Hacking | -11 -10 -10 -9 --------- Run | Scr Mat Min Mat Machines Accessed . | . . . . Terminals . | . . . . Fabricators . | . . . . Repair Stations . | . . . . Recycling Units . | . . . . Scanalyzers . | . . . . Garrison Access . | . . . . Total Hacks . | . . . . Successful . | . . . . Failed . | . . . . Catastrophic . | . . . . Database Lockouts . | . . . . Manual . | . . . . Terminals . | . . . . Fabricators . | . . . . Repair Stations . | . . . . Recycling Units . | . . . . Scanalyzers . | . . . . Garrison Access . | . . . . Terminal Hacks . | . . . . Fabricator Hacks . | . . . . Repair Station Hacks . | . . . . Recycling Unit Hacks . | . . . . Scanalyzer . | . . . . Garrison Access Hacks . | . . . . Unauthorized Hacks . | . . . . Terminals . | . . . . Fabricators . | . . . . Repair Stations . | . . . . Recycling Units . | . . . . Scanalyzers . | . . . . Garrison Access . | . . . . Data Cores Recovered . | . . . . Used . | . . . . Hacking Detections . | . . . . Full Trace Events . | . . . . Feedback Events . | . . . . Feedback Blocked . | . . . . Robot Schematics Acquired . | . . . . Robots Built . | . . . . Matter . | . . . . Time . | . . . . Total Robot Build Rating . | . . . . Part Schematics Acquired . | . . . . Parts Built . | . . . . Matter . | . . . . Time . | . . . . Total Part Build Rating . | . . . . Parts Repaired . | . . . . Time . | . . . . Parts Recycled . | . . . . Recycled Matter . | . . . . Retrieved Matter . | . . . . Retrieved Components . | . . . . Parts Scanalyzed . | . . . . Part Schematics Acquired . | . . . . Parts Damaged . | . . . . Bothacking | -11 -10 -10 -9 ------------ Run | Scr Mat Min Mat Used RIF Installer . | . . . . Robots Hacked . | . . . . Non-combat . | . . . . Combat . | . . . . Robot Hacks Applied . | . . . . Relay Couplers Released . | . . . . Robots Rewired . | . . . . Allies Hacked . | . . . . Hacks Repelled . | . . . . Allies | -11 -10 -10 -9 -------- Run | Scr Mat Min Mat Total Allies . | . . . . Largest Group . | . . . . Highest-Rated Group . | . . . . Highest-Rated Ally . | . . . . Total Orders . | . . . . Ally Attacks . | . . . . Total Damage . | . . . . Kills . | . . . . Allies Corrupted . | . . . . Allies Melted . | . . . . Intel | -11 -10 -10 -9 ------- Run | Scr Mat Min Mat Robot Analysis Total . | . . . . Derelict Logs Recovered 1 | . . 1 . Drone Launches . | . . . . Drone Recoveries . | . . . . Exploration | -11 -10 -10 -9 ------------- Run | Scr Mat Min Mat Turns Passed 432 | 82 141 57 152 Spaces Moved 294 | 59 100 46 89 Core 20 | 17 . . 3 Treads . | . . . . Legs 274 | 42 100 46 86 Wheels . | . . . . Hover . | . . . . Flight . | . . . . Fastest Speed 50 | 50 120 120 120 Average Speed 117 | 103 120 120 122 Slowest Speed 200 | 120 120 120 200 Overloaded Moves . | . . . . Propulsion Burnouts . | . . . . Robots Hopped . | . . . . Cave-ins Triggered . | . . . . Exploration Rate (%) 19 | 4 35 23 15 Regions Visited 3 Branch Regions 1 Pre-discovered Areas . | . . . . Known Exits Taken . | . . . . Unknown Exits Taken 3 | 1 1 1 . Scrap Searched . | . . . . Spaces Dug . | . . . . Terrain Destroyed 67 | . 1 25 41 Melee . | . . . . Projectile . | . . . . AOE 67 | . 1 25 41 Terrain Rammed . | . . . . Walls Destroyed . | . . . . Machines Disabled . | . . . . Actions | -11 -10 -10 -9 --------- Run | Scr Mat Min Mat Total 355 | 75 114 46 120 Wait . | . . . . Move 291 | 58 99 45 89 Hop . | . . . . Pick Up 15 | 9 4 . 2 Fast Attach 5 | 2 2 . 1 Attach 10 | 4 1 . 5 Detach . | . . . . Swap 1 | . 1 . . Drop 1 | . 1 . . Fire 12 | 2 6 1 3 Melee . | . . . . Ram . | . . . . Kick 20 | . . . 20 Crush . | . . . . Escape Stasis . | . . . . Rewire . | . . . . Trap . | . . . . Miscellaneous . | . . . . Route ------- -11/Scrapyard -10/Materials (discovered 2 exits: [*Mat] / [*Min]) -10/Mines -9/Materials (discovered 1 exit: Min) History --------- Turn | Location | Event 4 | -11/Scrapyard | Discovered new exit (range 15) 83 | -11/Scrapyard | Entered Materials 162 | -10/Materials | Discovered new exit (range 14) 192 | -10/Materials | Discovered new exit (range 13) 224 | -10/Materials | Entered Mines 275 | -10/Mines | Discovered new exit (range 6) 281 | -10/Mines | Entered Materials 281 | -9/Materials | Evolved 2 slots: Propulsion x1, Weapon x1 282 | -9/Materials | Identified exit to Mines 433 | -9/Materials | Self-destructed Last Messages --------------- 00403_ Slammed into Y-45 Defender. 00404_ Destabilizing: Core damaged (-8). 00405_ The unstable cave ceiling collapses. 00405_ Slammed into Y-45 Defender. 00405_ K-01 Serf collects debris. 00406_ Kicked Y-45 Defender out of the way. 00407_ Slammed into Y-45 Defender. 00408_ Aluminum Leg destroyed. 00409_ Kicked Y-45 Defender out of the way. 00410_ Slammed into Y-45 Defender. 00413_ Kicked Y-45 Defender out of the way. 00415_ Slammed into Y-45 Defender. 00417_ Mni. Grenade Launcher destroyed. 00418_ Slammed into Y-45 Defender. 00418_ Mni. Grenade Launcher permanently disabled. 00418_ Destabilizing: Short circuit. 00419_ Slammed into Y-45 Defender. 00419_ Broken Mni. Grenade Launcher destroyed. 00419_ System corrupted by crushing effect (+4). 00420_ Slammed into Y-45 Defender. Map ----- +----------------------------------------------------+ | | | | | | | | | | | ?????????????????????????????????????????????????? | | ?????????????????????????????????????????????????? | | ?????????????????????????????????????????????????? | | ?????????????????????????????????????????????????? | | ?????????????????????????????????????????????????? | | ?????????????????????????????????????????????????? | | ?????????????????????????????????????????????????? | | ?????????????????????????????????????????????????? | | ?????????????????????????????????????????????????? | | ???????????????????????????????????????#####?????? | | ??>????????????????????????????????????# #?????? | | ???????????????????????????????????????# #?????? | | ??????????????????????????????########## #?????? | | ??????????????????????????????# T # ####### | | ??????????????????????????????# # # | | ????????????????????????####### # # [ | | ????####+##############+# !# # # """ | | ???? + # """ # # """ | | ??? # """ # """"" # # """ | | ??? # """ # """"" # # """ | | ??? Y /@""" # """"" + + """ | | ??? """"" ##### """ # """ # # | | ????? """"" #???# ########## # | | ???? """"" ###########???????## ####### | | ???????# # #??######## #????? | | ???????# # """ #??# #????? | | ???????# ######## + """ #### #????? | | ???????????????## # """ ## #????? | | ??????##+####??# # # ## #????? | | ?????# # # ####### ########????? | | ?????# ####### = #???????????? | | ?????# = ###?????????? | | ?????# """ #??????? | | ??????????"""" #??????? | | ???????????""" ##+## """ #??????? | | ???????????""" # # T" #??????? | | ???????????"" # ### # """ #??????? | | ???????????####### #??# # #??????? | | ?????????????????# ???# # + ?????? | | ?????????????????# ???# # """" ###????? | | ?????????????????# ???# # """" #??????? | | ?????????????????# ???# # """" #??????? | | ?????????????????#????##### ???#####??????? | | ??????????????????????????## ??????????????? | | ???????????????????????????# ""???????????????? | +----------------------------------------------------+ Best States ------------- Heat Dissipation 28 Energy Generation 10 Energy Capacity 250 Matter Stores 184 Matter Capacity 300 Sight Range 16 Terrain Scan Density 10 Evasion (%) 50 Item Schematics ----------------- None Robot Schematics ------------------ None Fabricated ------------ Nothing Alien Tech Used ----------------- None Achievements -------------- None Challenges ------------ None Game ------ Seed ArmorImpulseSteel Manual? 0 Play Time 00:07:19 Cumulative 43.4 hours Start 2022.02.24 @ 07:24:02 End 2022.02.24 @ 07:30:03 Sessions 1 Manual Loads 0 Difficulty Rogue Special Mode None Game No. 59 Rogue 29 Adventurer 30 Explorer 0 Win Type - Total 0 Types 0/0/0/0/0/0/0/0/0 Lore% 21 Gallery% 35 Achievement% 25 Wizard Run 0 Options --------- ASCII 0 Keyboard 0 Movement Mouse Keybinds 0 Fullscreen 2 Font 16/Proggy Map View 76x50 Tactical HUD 1 Map Filters NONE Filters NONE Steam 1 RUN: d4bd9177-d8c6-4a87-a483-7f8086af20f7